bitfinex/quotes_SOLUSD_20251013
["timestamp","ask_amount","ask_price","bid_price","bid_amount"]
[1760336120271,0.1,195.44,195.43,15.65130145]
[1760336120773,0.1,195.44,195.43,20.7682231]
[1760336121469,0.76,195.44,195.38,0.68]
[1760336121685,0.1,195.44,195.43,4.09482624]
[1760336122052,0.1,195.44,195.43,15.65130145]
[1760336122669,0.1,195.44,195.43,14.97130145]
[1760336122872,0.1,195.44,195.43,5.11692165]
[1760336123078,0.1,195.44,195.43,9.21174789]
[1760336123262,0.1,195.44,195.43,5.11692165]
[1760336123458,0.1,195.44,195.43,9.21174789]
[1760336126358,0.76,195.44,195.38,12.7951441]
[1760336126556,0.1,195.44,195.43,4.09482624]
[1760336126778,0.1,195.44,195.39,29.46936736]
[1760336126982,0.1,195.44,195.39,28.78936736]
[1760336127164,0.66,195.43,195.39,15.99444439]
[1760336127366,0.66,195.43,195.42,4.09482624]
[1760336128069,0.66,195.43,195.42,9.21200974]
[1760336128457,0.1,195.44,195.42,9.21200974]
[1760336128657,0.1,195.44,195.43,4.09482624]
[1760336128883,0.76,195.44,195.43,4.09482624]
[1760336130477,0.85984479,195.44,195.43,4.09482624]
[1760336131762,0.85984479,195.44,195.4,5.11770726]
[1760336131963,0.85984479,195.44,195.43,4.09482624]
[1760336132286,0.85984479,195.44,195.39,5.11796918]
[1760336132466,0.85984479,195.44,195.42,4.09482624]
[1760336134082,0.66,195.43,195.35,12.79712214]
[1760336134283,0.66,195.42,195.39,4.09482624]
[1760336134490,0.66,195.42,195.4,4.09482624]
[1760336135093,0.66,195.41,195.4,4.09482624]
[1760336135261,0.66,195.43,195.4,4.09482624]
[1760336135463,0.66,195.42,195.4,4.09482624]
[1760336135661,0.66,195.42,195.39,4.09482624]
[1760336135884,0.66,195.41,195.37,4.09482624]
[1760336136091,0.66,195.4,195.36,4.09482624]
[1760336136390,0.66,195.39,195.36,4.09482624]
[1760336136570,0.66,195.39,195.37,4.09482624]
[1760336136765,0.66,195.41,195.37,4.09482624]
[1760336136974,0.66,195.4,195.37,4.09482624]
[1760336137576,0.19984479,195.44,195.39,4.09482624]
[1760336137776,0.19984479,195.44,195.43,4.09482624]
[1760336138886,0.85984479,195.44,195.42,4.09482624]
[1760336139074,0.85984479,195.44,195.42,9.21200132]
[1760336139278,0.19984479,195.44,195.43,4.77482624]
[1760336140092,0.19984479,195.44,195.43,4.09482624]
[1760336141996,0.19984479,195.44,195.43,9.21174789]
[1760336143393,0.19984479,195.44,195.43,4.09482624]
[1760336144896,0.19984479,195.44,195.43,9.93174789]
[1760336145100,0.19984479,195.44,195.43,9.21174789]
[1760336146205,0.19984479,195.44,195.43,20.8082231]
[1760336146511,0.10330146,195.46,195.45,14.97130145]
[1760336146697,1e-08,195.51,195.49,20.8]
[1760336146901,0.7,195.61,195.52,10.87647521]
[1760336147104,0.7,195.61,195.6,4.09482624]
[1760336147989,0.7,195.61,195.53,0.66]
[1760336148286,0.7,195.61,195.59,4.09482624]
[1760336148517,0.7,195.6,195.59,4.09482624]
[1760336149105,5.81247443,195.6,195.56,4.09482624]
[1760336149284,0.7,195.59,195.56,4.09482624]
[1760336149485,0.7,195.58,195.56,4.09482624]
[1760336149688,0.7,195.58,195.49,0.66]
[1760336149689,4.79482624,195.58,195.53,4.09482624]
[1760336149902,0.7,195.57,195.52,4.09482624]
[1760336150103,0.7,195.56,195.52,4.09482624]
[1760336150300,0.7,195.55,195.47,5.11587455]
[1760336150508,0.09507931,195.53,195.5,4.09482624]
[1760336150706,0.7,195.52,195.5,4.09482624]
[1760336151004,0.7,195.52,195.51,4.09482624]
[1760336151589,0.09507931,195.53,195.51,4.09482624]
[1760336151808,0.79507931,195.53,195.52,4.09482624]
[1760336152507,0.09507931,195.53,195.52,4.09482624]
[1760336153885,0.09507931,195.53,195.52,9.20939252]
[1760336154090,0.09507931,195.53,195.52,9.86939252]
[1760336154390,0.09507931,195.53,195.5,5.11502462]
[1760336154606,0.09507931,195.53,195.52,4.09482624]
[1760336155401,0.09507931,195.53,195.52,9.20939252]
[1760336157016,0.09586161,195.54,195.52,9.86939252]
[1760336157215,0.09586161,195.54,195.53,15.63130145]
[1760336157517,0.09586161,195.54,195.53,20.74560616]
[1760336160306,0.09586161,195.54,195.51,5.11457992]
[1760336160507,0.09586161,195.54,195.53,4.09482624]
[1760336162318,0.09586161,195.54,195.53,9.20913095]
[1760336163712,0.79586161,195.54,195.53,4.09482624]
[1760336163903,0.79586161,195.54,195.52,4.09482624]
[1760336164102,0.7,195.53,195.5,5.11508951]
[1760336164303,0.7,195.53,195.52,4.09482624]
[1760336164713,0.09586161,195.54,195.52,4.09482624]
[1760336164912,0.09586161,195.54,195.53,4.09482624]
[1760336165119,0.79586161,195.54,195.53,4.09482624]
[1760336165325,0.79586161,195.54,195.5,5.11505991]
[1760336165662,0.79586161,195.54,195.53,2.61407081]
[1760336167908,0.79586161,195.54,195.52,2.61407081]
[1760336168111,0.7,195.53,195.52,2.61407081]
[1760336168431,0.7,195.53,195.48,5.11561285]
[1760336168604,0.7,195.52,195.49,2.61407081]
[1760336168805,0.7,195.51,195.49,2.61407081]
[1760336169025,0.7,195.51,195.5,2.61407081]
[1760336169318,0.09586161,195.54,195.5,2.61407081]
[1760336169319,0.79586161,195.54,195.5,2.61407081]
[1760336169531,0.7,195.53,195.51,2.61407081]
[1760336169728,0.7,195.53,195.52,2.61407081]
[1760336169907,5.21002288,195.54,195.52,2.61407081]
[1760336170113,5.21002288,195.54,195.51,2.61407081]
[1760336170313,5.21002288,195.54,195.49,5.11534754]
[1760336170614,0.8051891,195.53,195.51,2.61407081]
[1760336170919,0.7,195.52,195.51,2.61407081]
[1760336171517,0.1051891,195.53,195.51,7.72889869]
[1760336171721,0.1051891,195.53,195.51,5.11482788]
[1760336172019,0.1051891,195.53,195.52,2.61407081]
[1760336172815,0.1051891,195.53,195.52,83.01407081]
[1760336173116,0.1051891,195.53,195.52,88.12863709]
[1760336173433,0.10061992,195.56,195.52,88.12863709]
[1760336173434,0.10061992,195.56,195.55,10.87647521]
[1760336173734,0.11183441,195.61,195.55,150.20461683]
[1760336173909,0.11183441,195.61,195.58,5.22814162]
[1760336174110,0.11183441,195.61,195.57,10.87647521]
[1760336174329,0.11183441,195.61,195.58,2.61407081]
[1760336174822,0.11183441,195.61,195.56,0.66]
[1760336175133,0.11183441,195.61,195.58,7.72706804]
[1760336176741,0.79309032,195.59,195.56,5.11352014]
[1760336177046,0.10309032,195.59,195.58,2.61407081]
[1760336177218,5.21589075,195.59,195.49,134.1]
[1760336177413,0.69,195.58,195.5,21.33275845]
[1760336177623,5.21589075,195.59,195.54,2.61407081]
[1760336177624,0.69,195.57,195.54,2.61407081]
[1760336177829,0.69,195.56,195.54,2.61407081]
[1760336178224,0.69,195.55,195.54,2.61407081]
[1760336179128,0.69,195.57,195.54,2.61407081]
[1760336179328,0.69,195.56,195.54,2.61407081]
[1760336179836,0.69,195.56,195.53,2.61407081]
[1760336180028,0.69,195.55,195.54,2.61407081]
[1760336180838,5.21605634,195.59,195.54,2.61407081]
[1760336181023,0.69,195.58,195.56,2.61407081]
[1760336181224,0.69,195.57,195.56,2.61407081]
[1760336181426,0.10309032,195.59,195.56,3.27407081]
[1760336181731,0.10309032,195.59,195.58,2.61407081]
[1760336182335,0.10309032,195.59,195.58,3.27407081]
[1760336182922,0.10309032,195.59,195.58,8.38706804]
[1760336183335,0.10309032,195.59,195.58,21.87761406]
[1760336183643,0.09295525,195.6,195.58,19.26354325]
[1760336183826,0.09295525,195.6,195.59,3.27407081]
[1760336184529,0.09295525,195.6,195.59,16.76461683]
[1760336184922,0.09295525,195.6,195.59,21.87735265]
[1760336187545,0.11183441,195.61,195.59,21.87735265]
[1760336187754,0.11183441,195.61,195.6,5.88814162]
[1760336188938,0.11183441,195.61,195.6,5.22814162]
[1760336189438,0.11183441,195.61,195.6,5.88814162]
[1760336189749,0.11183441,195.61,195.6,11.00061605]
[1760336190348,0.11183441,195.61,195.6,224.84061605]
[1760336190554,0.2215956,195.61,195.6,224.84061605]
[1760336191056,0.2215956,195.61,195.6,225.50061605]
[1760336191353,0.2215956,195.61,195.6,18.60302045]
[1760336191732,0.9115956,195.61,195.58,5.1127382]
[1760336191930,0.10976119,195.61,195.6,2.61407081]
[1760336192750,0.09844607,195.62,195.6,34.53035405]
[1760336192927,0.09844607,195.62,195.61,3.27407081]
[1760336193129,0.11121144,195.65,195.62,10.87647521]
[1760336193351,0.09803055,195.68,195.64,18.60197517]
[1760336193626,0.09803055,195.68,195.66,10.87647521]
[1760336193838,0.09803055,195.68,195.66,13.49054602]
[1760336195453,0.09803055,195.68,195.66,18.60145269]
[1760336197148,0.09803055,195.68,195.67,10.87647521]
[1760336197460,0.09803055,195.68,195.67,13.49054602]
[1760336197956,0.09657856,195.7,195.67,24.60682926]
[1760336198161,0.09657856,195.7,195.69,23.94682926]
[1760336198357,0.09657856,195.7,195.69,10.87647521]
[1760336198569,0.367787,195.74,195.7,10.87647521]
[1760336198853,0.367787,195.74,195.67,10.87647521]
[1760336199040,0.367787,195.74,195.72,2.61407081]
[1760336199238,0.69,195.73,195.72,2.61407081]
[1760336200647,0.69,195.73,195.69,5.10996576]
[1760336200847,0.367787,195.74,195.72,2.61407081]
[1760336201047,0.367787,195.74,195.73,2.61407081]
[1760336203182,0.367787,195.74,195.73,7.72314964]
[1760336203548,0.367787,195.74,195.73,2.61407081]
[1760336203748,0.367787,195.74,195.69,5.1099201]
[1760336203749,1.057787,195.74,195.69,5.1099201]
[1760336204057,0.69,195.73,195.72,2.61407081]
[1760336204460,0.69,195.73,195.63,12.77882376]
[1760336204648,0.7,195.72,195.7,2.61407081]
[1760336204845,0.7,195.71,195.7,2.61407081]
[1760336205253,0.7,195.73,195.7,2.61407081]
[1760336205545,0.7,195.72,195.7,2.61407081]
[1760336205855,0.7,195.71,195.7,2.61407081]
[1760336206444,0.7,195.71,195.67,5.11064547]
[1760336206652,5.47660753,195.74,195.7,2.61407081]
[1760336206846,5.47660753,195.74,195.66,5.11065915]
[1760336207047,5.47660753,195.74,195.69,2.61407081]
[1760336207361,0.7,195.73,195.66,5.11065915]
[1760336207542,0.7,195.72,195.69,2.61407081]
[1760336207745,0.7,195.71,195.69,2.61407081]
[1760336207975,1.067787,195.74,195.66,18.54792583]
[1760336208148,1.067787,195.74,195.73,2.61407081]
[1760336208651,1.067787,195.74,195.7,5.10986203]
[1760336208865,1.067787,195.74,195.73,2.61407081]
[1760336209467,1.067787,195.74,195.72,2.61407081]
[1760336209648,0.7,195.73,195.71,2.61407081]
[1760336209843,0.7,195.73,195.66,0.66]
[1760336209844,0.367787,195.74,195.72,2.61407081]
[1760336210371,0.7,195.73,195.71,2.61407081]
[1760336210569,0.7,195.72,195.71,2.61407081]
[1760336211249,0.10722308,195.73,195.71,7.72367175]
[1760336211449,0.10722308,195.73,195.72,2.61407081]
[1760336212948,0.80722308,195.73,195.66,12.77682499]
[1760336213190,0.7,195.72,195.7,2.61407081]
[1760336213372,0.7,195.71,195.7,2.61407081]
[1760336213889,0.80722308,195.73,195.67,10.87647521]
[1760336214079,0.80722308,195.73,195.71,2.61407081]
[1760336214264,0.7,195.72,195.66,5.11090667]
[1760336214494,0.7,195.71,195.68,2.61407081]
[1760336214808,0.7,195.7,195.65,2.61407081]
[1760336214970,0.7,195.7,195.64,7.72543266]
[1760336214971,0.7,195.69,195.64,7.72543266]
[1760336215299,0.7,195.68,195.65,2.61407081]
[1760336215485,0.7,195.67,195.64,2.61407081]
[1760336215689,0.7,195.66,195.63,6.52782866]
[1760336215881,0.7,195.65,195.59,5.11273582]
[1760336216078,0.7,195.65,195.62,6.52782866]
[1760336216302,0.7,195.64,195.59,5.11273582]
[1760336216502,0.7,195.63,195.6,6.52782866]
[1760336216796,0.7,195.63,195.59,11.64056448]
[1760336217004,0.7,195.62,195.6,6.52782866]
[1760336217496,0.7,195.67,195.61,6.52782866]
[1760336217805,5.81002114,195.7,195.65,6.52782866]
[1760336217975,0.7,195.69,195.61,0.66]
[1760336218178,0.7,195.69,195.64,6.52782866]
[1760336218376,11.6378498,195.7,195.62,6.52782866]
[1760336218377,7.22782866,195.68,195.62,6.52782866]
[1760336218684,0.7,195.68,195.62,6.52782866]
[1760336218888,0.7,195.68,195.57,18.55640536]
[1760336218889,0.7,195.67,195.57,18.55640536]
[1760336219076,5.81090885,195.66,195.62,6.52782866]
[1760336219275,0.7,195.65,195.62,6.52782866]
[1760336219483,0.7,195.64,195.62,6.52782866]
[1760336219686,0.7,195.63,195.62,6.52782866]
[1760336220202,0.7,195.63,195.58,17.89549032]
[1760336220394,0.7,195.65,195.61,11.64003759]
[1760336220721,0.7,195.67,195.64,6.52782866]
[1760336220903,0.7,195.67,195.65,6.52782866]
[1760336221284,0.7,195.67,195.66,6.52782866]
[1760336221480,0.7,195.67,195.6,5.11246597]
[1760336221799,6.52782866,195.68,195.6,5.11246597]
[1760336222002,0.7,195.66,195.61,6.52782866]
[1760336222192,0.7,195.65,195.61,6.52782866]
[1760336222397,0.7,195.64,195.61,6.52782866]
[1760336222604,0.7,195.63,195.61,6.52782866]
[1760336222780,0.7,195.63,195.62,6.52782866]
[1760336222982,0.7,195.63,195.61,6.52782866]
[1760336223176,0.7,195.62,195.59,6.52782866]
[1760336223383,0.7,195.61,195.56,5.11352014]
[1760336223680,0.7,195.61,171.15,0.07]
[1760336223681,0.7,195.6,195.52,5.11456628]
[1760336223884,7.22782866,195.59,195.49,0.66]
[1760336224194,0.7,195.58,195.54,6.52782866]
[1760336224395,5.11325867,195.57,195.54,6.52782866]
[1760336224591,5.11325867,195.57,195.53,6.52782866]
[1760336224792,0.7,195.56,195.53,6.52782866]
[1760336224989,0.7,195.55,195.53,80.4]
[1760336225188,0.7,195.54,195.51,11.42782866]
[1760336225392,11.64108733,195.57,195.51,4.9]
[1760336225393,0.7,195.53,195.51,4.9]
[1760336225584,0.7,195.53,195.51,14.63772084]
[1760336226010,20.8,195.59,195.51,14.63772084]
[1760336226199,0.7,195.61,195.58,9.73772084]
[1760336226390,5.11142915,195.64,195.6,9.73772084]
[1760336226706,5.11142915,195.64,195.55,5.11378164]
[1760336226707,0.7,195.61,195.58,9.73772084]
[1760336226910,0.7,195.6,195.58,9.73772084]
[1760336227490,0.7,195.59,195.55,9.73772084]
[1760336227691,0.7,195.58,195.54,9.73772084]
[1760336228000,0.7,195.57,195.53,9.73772084]
[1760336228207,0.7,195.56,195.53,9.73772084]
[1760336228706,5.81357383,195.56,195.53,9.73772084]
[1760336229006,5.11324075,195.58,195.55,9.73772084]
[1760336229210,0.7,195.56,195.54,9.73772084]
[1760336229789,5.81324075,195.58,195.54,9.73772084]
[1760336230012,0.7,195.57,195.54,9.73772084]
[1760336230614,0.10377074,195.56,195.55,5.11378164]
[1760336231686,0.10377074,195.56,195.55,14.85150248]
[1760336231886,0.10377074,195.56,195.55,15.51150248]
[1760336233387,0.10377074,195.56,195.55,26.38797769]
[1760336235412,0.1087084,195.58,195.55,26.38797769]
[1760336235413,0.1087084,195.58,195.56,10.87647521]
[1760336235608,0.1087084,195.58,195.57,30.35191689]
[1760336235912,0.10252773,195.59,195.57,31.01191689]
[1760336236121,0.10252773,195.59,195.58,25.24843891]
[1760336236800,0.10252773,195.59,195.58,5.11299723]
[1760336236992,0.10252773,195.59,195.58,15.51071807]
[1760336237615,0.10252773,195.59,195.58,5.11299723]
[1760336237817,0.10252773,195.59,195.58,14.85071807]
[1760336238214,0.10252773,195.59,195.58,15.51071807]
[1760336238514,0.10252773,195.59,195.58,36.12491412]
[1760336238711,0.10882975,195.6,195.59,9.73772084]
[1760336238910,0.10882975,195.6,195.59,10.39772084]
[1760336239112,0.11022003,195.62,195.6,10.87647521]
[1760336239318,1e-08,195.62,195.6,42.07419605]
[1760336239519,1e-08,195.62,195.61,10.39772084]
[1760336239730,1e-08,195.62,195.61,0.66]
[1760336239892,1e-08,195.62,195.61,9.73772084]
[1760336240097,1e-08,195.62,195.61,15.50993391]
[1760336240398,1e-08,195.62,195.61,26.38640912]
[1760336241302,3.38080558,195.72,195.61,26.38640912]
[1760336241507,0.71,195.72,195.63,30.53772084]
[1760336241722,3.03822009,195.74,195.63,30.53772084]
[1760336241900,0.71,195.71,195.63,31.19772084]
[1760336242214,0.71,195.71,195.63,47.18588648]
[1760336244612,8.1471709,195.74,195.63,5.11169043]
[1760336244613,9.73772084,195.73,195.63,5.11169043]
[1760336244811,0.81618022,195.64,195.58,12.78203411]
[1760336245018,0.71,195.63,195.62,9.73772084]
[1760336245221,0.71,195.63,195.61,9.73772084]
[1760336245398,0.71,195.62,195.61,9.73772084]
[1760336246812,0.71,195.62,195.61,14.84993391]
[1760336247198,0.71,195.62,195.56,5.11352014]
[1760336247404,0.71,195.61,195.58,9.73772084]
[1760336247606,0.71,195.6,195.58,9.73772084]
[1760336247805,0.71,195.59,195.58,9.73772084]
[1760336248021,0.71,195.59,195.57,9.73772084]
[1760336248246,0.71,195.61,195.58,9.73772084]
[1760336248523,0.10618022,195.64,195.6,9.73772084]
[1760336248727,5.21763693,195.64,195.6,9.73772084]
[1760336248927,0.71,195.63,195.6,9.73772084]
[1760336249306,0.71,195.62,195.59,9.73772084]
[1760336249507,0.71,195.61,195.58,9.73772084]
[1760336249709,0.71,195.6,195.58,9.73772084]
[1760336249919,5.21763693,195.64,195.58,9.73772084]
[1760336250117,0.71,195.6,195.58,9.73772084]
[1760336250514,0.81413344,195.6,195.59,9.73772084]
[1760336250998,0.10413344,195.6,195.59,9.73772084]
[1760336252432,0.10413344,195.6,195.59,14.85045666]
[1760336252814,0.81413344,195.6,195.57,9.73772084]
[1760336253010,0.71,195.59,195.54,5.11404316]
[1760336253317,0.10413344,195.6,195.56,9.73772084]
[1760336253318,0.71,195.58,195.56,9.73772084]
[1760336253519,0.71,195.57,195.56,9.73772084]
[1760336254626,0.71,195.57,195.51,17.90146103]
[1760336255025,0.71,195.57,195.55,9.73772084]
[1760336255226,0.71,195.57,195.56,9.73772084]
[1760336257127,0.71,195.57,195.54,5.11393232]
[1760336257329,5.21667631,195.6,195.56,9.73772084]
[1760336257642,14.95439715,195.6,195.53,9.73772084]
[1760336257946,9.73772084,195.57,195.45,0.66]
[1760336258108,9.73772084,195.56,195.49,9.73772084]
[1760336258310,0.71,195.55,195.49,9.73772084]
[1760336258519,0.71,195.54,195.49,9.73772084]
[1760336258720,0.71,195.53,195.49,9.73772084]
[1760336258919,0.71,195.54,195.52,9.73772084]
[1760336259130,0.71,195.57,195.53,9.73772084]
[1760336259324,0.71,195.56,195.55,9.73772084]
[1760336261532,5.82358754,195.56,195.47,12.78916917]
[1760336261715,0.71,195.55,195.51,9.73772084]
[1760336261915,0.71,195.55,195.47,12.78916917]
[1760336261916,0.71,195.54,195.52,9.73772084]
[1760336262435,0.71,195.53,195.52,9.73772084]
[1760336263715,0.71,195.53,195.47,5.11587455]
[1760336263930,0.71,195.53,195.5,9.73772084]
[1760336264134,0.7,195.52,195.49,9.73772084]
[1760336264346,0.7,195.55,195.51,9.73772084]
[1760336264522,0.72,195.54,195.52,9.73772084]
[1760336265534,0.72,195.54,195.53,9.73772084]
[1760336268015,0.72,195.54,195.51,5.11471704]
[1760336268224,0.72,195.54,195.53,9.73772084]
[1760336268646,0.72,195.54,195.52,9.73772084]
[1760336268847,0.72,195.54,195.51,5.11471704]
[1760336269034,0.72,195.54,195.52,9.73772084]
[1760336269750,0.72,195.53,195.52,9.73772084]
[1760336270323,5.1135396,195.56,195.52,9.73772084]
[1760336270324,0.72,195.55,195.52,9.73772084]
[1760336270523,0.09881286,195.53,195.52,9.73772084]
[1760336272035,0.09881286,195.53,195.49,9.73772084]
[1760336272036,5.93316964,195.53,195.49,9.73772084]
[1760336272240,0.72,195.52,195.49,9.73772084]
[1760336272441,0.72,195.51,195.49,9.73772084]
[1760336272746,0.72,195.5,195.48,9.73772084]
[1760336273529,5.21316964,195.53,195.48,9.73772084]
[1760336273736,0.72,195.52,195.5,9.73772084]
[1760336275122,0.72,195.52,195.46,0.86]
[1760336275329,0.72,195.52,195.49,9.73772084]
[1760336275527,0.72,195.51,195.47,9.73772084]
[1760336275830,0.72,195.51,195.46,0.2]
[1760336276237,0.72,195.51,195.46,9.93772084]
[1760336276543,0.72,195.5,195.46,9.93772084]
[1760336276738,0.72,195.49,195.46,9.93772084]
[1760336276925,0.72,195.48,195.46,9.93772084]
[1760336277542,0.72,195.48,195.46,4.28718987]
[1760336278647,0.72,195.48,195.47,4.08718987]
[1760336280040,5.83456628,195.52,195.47,4.74718987]
[1760336280246,0.72,195.51,195.49,4.08718987]
[1760336280450,5.11456628,195.52,195.49,4.08718987]
[1760336280451,0.72,195.5,195.49,4.08718987]
[1760336280926,0.72,195.5,195.48,4.08718987]
[1760336282231,5.83511449,195.5,195.48,4.08718987]
[1760336282553,0.72,195.49,195.46,4.28718987]
[1760336283153,0.72,195.49,195.47,4.08718987]
[1760336283933,5.83477887,195.52,195.48,4.08718987]
[1760336284139,0.72,195.51,195.48,4.08718987]
[1760336284948,0.72,195.5,195.46,0.2]
[1760336285146,0.72,195.5,195.49,4.08718987]
[1760336285338,5.93314243,195.53,195.49,4.08718987]
[1760336285537,0.72,195.52,195.49,2.61510577]
[1760336285732,0.72,195.51,195.46,5.31613186]
[1760336285938,0.72,195.5,195.47,2.61510577]
[1760336286655,0.72,195.5,195.48,2.61510577]
[1760336289938,0.72,195.49,195.46,2.81510577]
[1760336290641,0.09547396,195.47,195.46,219.81609775]
[1760336290841,0.09547396,195.47,195.46,85.71609775]
[1760336291042,0.09547396,195.47,195.46,86.37609775]
[1760336291859,0.09547396,195.47,195.46,7.93120352]
[1760336292044,0.09547396,195.47,195.46,5.31609775]
[1760336292246,0.09547396,195.47,195.46,2.81510577]
[1760336292560,0.09547396,195.47,195.46,0.2]
[1760336293064,0.09547396,195.47,195.46,3.47510577]
[1760336293273,0.09547396,195.47,195.46,2.81510577]
[1760336293960,0.09547396,195.47,195.46,8.59124206]
[1760336294657,0.09547396,195.47,195.46,7.93124206]
[1760336294845,0.09547396,195.47,195.46,8.59124206]
[1760336296949,0.09547396,195.47,195.46,0.2]
[1760336297170,0.80547396,195.47,195.46,80.6]
[1760336297557,0.09547396,195.47,195.46,80.6]
[1760336297759,0.80547396,195.47,195.46,80.6]
[1760336298069,0.09547396,195.47,195.46,80.6]
[1760336298448,0.80547396,195.47,195.46,80.6]
[1760336299550,5.92134851,195.47,195.46,0.2]
[1760336300855,8.53645428,195.47,195.46,0.2]
[1760336302375,11.2108304,195.47,195.46,0.2]
[1760336304071,8.59572463,195.47,195.46,0.2]
[1760336304380,11.2108304,195.47,195.46,0.2]
[1760336305371,2.76985008,195.47,195.46,0.2]
[1760336305570,7.88572463,195.47,195.46,0.2]
[1760336305763,8.59572463,195.47,195.46,0.2]
[1760336306374,2.76985008,195.47,195.46,5.97613629]
[1760336306577,1e-08,195.49,195.46,22.08282304]
[1760336306870,1e-08,195.5,195.49,10.87647521]
[1760336307055,0.09475178,195.53,195.52,31.67647521]
[1760336307250,0.09475178,195.53,195.52,34.29158098]
[1760336307952,2.67204029,195.64,195.53,20.8]
[1760336308153,0.71,195.58,195.53,20.8]
[1760336308458,0.71,195.58,195.53,23.41510577]
[1760336309165,0.71,195.58,195.53,28.52941048]
[1760336309366,2.61510577,195.61,195.53,20.8]
[1760336309558,0.80507775,195.56,195.53,23.41510577]
[1760336310451,0.19984295,195.54,195.53,23.41510577]
[1760336310659,0.19984295,195.54,195.53,20.8]
[1760336310960,0.19984295,195.54,195.53,28.52941048]
[1760336311478,0.19984295,195.54,195.53,39.40588569]
[1760336311858,0.10604305,195.54,195.53,39.40588569]
[1760336312354,0.10269699,195.55,195.54,10.87647521]
[1760336312671,0.10269699,195.55,195.54,13.49158098]
[1760336313578,0.10269699,195.55,195.54,22.52039327]
[1760336314283,0.10340377,195.58,195.54,29.05026817]
[1760336314455,0.09244931,195.63,195.61,20.8]
[1760336314456,1e-08,195.63,195.61,20.8]
[1760336314775,0.71,195.75,195.66,10.87647521]
[1760336314979,0.71,195.75,195.73,6.5298749]
[1760336315171,12.76597018,195.84,195.69,31.67647521]
[1760336315172,1.077787,195.74,195.69,31.67647521]
[1760336315575,0.367787,195.74,195.69,36.78643236]
[1760336315873,0.71,195.73,195.69,36.78643236]
[1760336316188,0.367787,195.74,195.72,6.5298749]
[1760336316363,0.367787,195.74,195.73,6.5298749]
[1760336316559,0.367787,195.74,195.69,36.78634934]
[1760336316760,0.367787,195.74,195.73,6.5298749]
[1760336317862,1.077787,195.74,195.69,31.67647521]
[1760336318058,0.367787,195.74,195.63,12.77909888]
[1760336318358,0.367787,195.74,195.67,20.8]
[1760336318555,0.71,195.73,195.71,6.5298749]
[1760336318760,0.367787,195.74,195.71,6.5298749]
[1760336319495,0.71,195.73,195.72,6.5298749]
[1760336319798,0.71,195.73,195.71,6.5298749]
[1760336319986,0.71,195.73,195.7,6.5298749]
[1760336320482,0.71,195.72,195.67,6.5298749]
[1760336320675,0.71,195.71,195.67,6.5298749]
[1760336320881,12.00671487,195.74,195.67,6.5298749]
[1760336321184,0.71,195.7,195.65,6.5298749]
[1760336321363,0.71,195.7,195.67,6.5298749]
[1760336321564,0.71,195.7,195.6,38.20635011]
[1760336321565,0.367787,195.74,195.69,6.5298749]
[1760336321868,0.367787,195.74,195.62,12.77950579]
[1760336321869,0.367787,195.74,195.68,10.87647521]
[1760336322066,0.367787,195.74,195.73,6.5298749]
[1760336322670,0.367787,195.74,195.73,17.40635011]
[1760336322872,0.367787,195.74,195.73,10.87647521]
[1760336323068,0.367787,195.74,195.73,17.40635011]
[1760336323679,0.367787,195.74,195.73,22.51542894]
[1760336324861,0.1,195.8,195.75,10.87647521]
[1760336325066,0.1,195.8,195.79,6.5298749]
[1760336327387,0.1,195.8,195.77,5.10798176]
[1760336327568,0.1,195.8,195.72,5.10928262]
[1760336327769,0.1,195.8,195.77,6.5298749]
[1760336328073,0.1,195.8,195.79,6.5298749]
[1760336328496,0.1,195.8,195.79,17.40635011]
[1760336328690,0.68,195.88,195.8,10.87647521]
[1760336328890,2.66827173,195.92,195.87,6.5298749]
[1760336329089,2.66827173,195.92,195.91,6.5298749]
[1760336329090,3.34827173,195.92,195.91,6.5298749]
[1760336329391,0.68,195.92,195.91,6.5298749]
[1760336329897,0.68,195.92,195.83,10.87647521]
[1760336330084,0.68,195.91,195.86,6.5298749]
[1760336330396,0.68,195.9,195.87,6.5298749]
[1760336330588,0.78076683,195.89,195.88,6.5298749]
[1760336330809,0.78076683,195.89,195.87,6.5298749]